bitfinex-derivatives/quotes_SOLF0:USTF0_20250928
["timestamp","ask_amount","ask_price","bid_price","bid_amount"]
[1759060687928,70.0413,199.79,199.72,7.46]
[1759060688725,4.5036,199.75,199.72,7.46]
[1759060689431,4.503,199.77,199.7,7.46]
[1759060690628,4.503,199.77,199.7,11.9644]
[1759060692129,4.5033,199.76,199.7,11.9644]
[1759060692330,70.0338,199.81,199.71,8.19]
[1759060692536,192.5866,199.83,199.71,8.19]
[1759060692723,192.5666,199.83,199.71,8.19]
[1759060693036,70.0266,199.83,199.71,8.19]
[1759060693334,192.5666,199.83,199.71,8.19]
[1759060693730,4.5029,199.78,199.71,8.19]
[1759060694335,4.5029,199.78,199.71,12.6942]
[1759060695030,4.5029,199.78,199.72,8.19]
[1759060696532,4.5024,199.8,199.73,8.19]
[1759060697031,4.5024,199.8,199.75,8.19]
[1759060697433,4.5019,199.83,199.7,70.0718]
[1759060697739,4.5019,199.83,199.71,8.19]
[1759060698038,4.5019,199.83,199.76,8.19]
[1759060698232,4.502,199.82,199.76,8.19]
[1759060698938,4.5015,199.84,199.77,8.19]
[1759060699332,70.0117,199.88,199.77,8.19]
[1759060699333,70.0124,199.87,199.77,8.19]
[1759060699737,4.5012,199.86,199.77,8.19]
[1759060700041,207.56219999,199.88,199.77,8.19]
[1759060700835,137.55049999,199.88,199.77,8.19]
[1759060701038,0.49753652,199.94,199.76,8.19]
[1759060701540,88.68,199.93,199.76,8.19]
[1759060702242,84.66776421,199.92,199.76,8.19]
[1759060702439,4.5005,199.88,199.78,8.19]
[1759060703245,4.5001,199.9,199.82,8.19]
[1759060703649,69.9815,199.96,199.82,8.19]
[1759060703847,4.4997,199.92,199.84,4.5013]
[1759060704151,4.4997,199.92,199.81,22.54]
[1759060704152,556.8802,199.97,199.85,7.79]
[1759060704454,364.38,199.97,199.85,7.79]
[1759060704647,4.4991,199.95,199.86,4.5008]
[1759060704849,4.4991,199.95,199.87,7.79]
[1759060705053,434.358,199.97,199.87,7.79]
[1759060705554,434.358,199.97,199.83,89.99448631]
[1759060705555,69.9843,199.95,199.84,7.79]
[1759060705850,69.9882,199.94,199.84,7.79]
[1759060706459,4.5002,199.9,199.84,7.79]
[1759060707157,4.4996,199.92,199.84,7.79]
[1759060708056,4.5,199.91,199.84,7.79]
[1759060710656,192.4643,199.95,199.84,7.79]
[1759060711650,4.4996,199.93,199.84,7.79]
[1759060711858,69.9951,199.92,199.83,0.75448631]
[1759060712157,192.4751,199.92,199.83,0.75448631]
[1759060712457,122.48,199.91,199.83,0.75448631]
[1759060712754,192.4789,199.91,199.83,0.75448631]
[1759060713056,70.003,199.9,199.83,0.75448631]
[1759060713454,69.9914,199.93,199.83,0.75448631]
[1759060713658,69.9914,199.93,199.84,7.79]
[1759060713857,122.5,199.92,199.84,7.79]
[1759060714559,4.5004,199.89,199.84,7.79]
[1759060715159,4.5004,199.89,199.83,8.54448631]
[1759060719065,4.5006,199.88,199.83,0.75448631]
[1759060719269,4.5006,199.88,199.84,7.79]
[1759060720168,69.9969,199.91,199.83,0.75448631]
[1759060720361,192.3969,199.91,199.83,0.75448631]
[1759060720561,122.4,199.9,199.83,0.75448631]
[1759060720762,4.501,199.86,199.83,0.75448631]
[1759060720962,4.501,199.86,199.83,8.54448631]
[1759060721664,4.5004,199.88,199.83,8.54448631]
[1759060722168,4.5004,199.88,199.84,7.79]
[1759060722565,4.5004,199.88,199.83,0.75448631]
[1759060722771,4.5004,199.88,199.84,7.79]
[1759060723360,4.5,199.9,199.83,0.75448631]
[1759060723564,122.38,199.92,199.84,7.79]
[1759060723970,192.3514,199.93,199.84,7.79]
[1759060724672,4.5003,199.89,199.83,5.25598631]
[1759060724868,4.5003,199.89,199.83,13.04598631]
[1759060725167,4.4997,199.92,199.84,12.2912]
[1759060725472,4.4997,199.92,199.85,7.79]
[1759060725669,192.3643,199.95,199.85,7.79]
[1759060726571,4.4998,199.91,199.85,7.79]
[1759060726771,192.3643,199.95,199.85,7.79]
[1759060727279,122.4,199.94,199.85,7.79]
[1759060727572,4.5001,199.9,199.85,7.79]
[1759060728075,4.5001,199.9,199.84,4.5012]
[1759060728575,122.36,199.94,199.86,7.79]
[1759060729072,69.9962,199.92,199.83,8.54448631]
[1759060729471,4.501,199.86,199.83,8.54448631]
[1759060729674,70.0018,199.9,199.83,0.75448631]
[1759060729871,70.0051,199.89,199.83,0.75448631]
[1759060730172,4.5013,199.85,199.83,0.75448631]
[1759060731874,69.9912,199.93,199.84,7.79]
[1759060732174,69.9943,199.92,199.84,7.79]
[1759060732373,4.5008,199.87,199.84,7.79]
[1759060732674,4.5008,199.87,199.83,0.75448631]
[1759060732976,4.5008,199.87,199.84,7.79]
[1759060733976,4.5008,199.87,199.84,7.4]
[1759060734675,4.5008,199.87,199.83,0.75448631]
[1759060734870,4.5008,199.87,199.84,7.4]
[1759060735272,4.5008,199.87,199.83,0.75448631]
[1759060735672,4.5008,199.87,199.84,7.4]
[1759060736674,4.5004,199.89,199.83,12.65588631]
[1759060737878,4.5007,199.87,199.83,8.15448631]
[1759060738079,4.5007,199.87,199.83,0.75448631]
[1759060738281,4.5007,199.87,199.84,7.4]
[1759060738482,4.5007,199.87,199.83,0.75448631]
[1759060738681,4.5007,199.87,199.84,7.4]
[1759060738878,4.5007,199.87,199.83,0.75448631]
[1759060739080,4.5007,199.87,199.84,7.4]
[1759060740180,4.501,199.86,199.83,0.75448631]
[1759060740376,4.501,199.86,199.83,8.15448631]
[1759060740773,4.5013,199.85,199.83,8.15448631]
[1759060742781,4.5013,199.85,199.83,0.75448631]
[1759060743873,4.5019,199.82,199.78,11.60447759]
[1759060744074,4.5019,199.82,199.79,7.4]
[1759060744684,70.0246,199.84,199.77,7.4]
[1759060745283,4.5027,199.79,199.77,7.4]
[1759060746578,4.5021,199.81,199.77,7.4]
[1759060746779,70.0095,199.88,199.77,7.4]
[1759060746978,122.3,199.86,199.77,7.4]
[1759060748588,4.5017,199.83,199.77,7.4]
[1759060749891,4.5013,199.85,199.78,7.4]
[1759060750390,4.5013,199.85,199.79,7.98]
[1759060750983,70.009,199.88,199.78,7.98]
[1759060751179,122.28,199.87,199.78,7.98]
[1759060751589,122.3,199.87,199.78,7.98]
[1759060752589,4.5017,199.83,199.77,7.98]
[1759060754191,4.5019,199.82,199.77,7.98]
[1759060754888,70.0196,199.85,199.77,7.98]
[1759060755590,4.5024,199.8,199.76,7.98]
[1759060756189,4.5024,199.8,199.75,4.20447759]
[1759060756896,4.5024,199.8,199.76,7.98]
[1759060757395,4.5024,199.8,199.75,4.20447759]
[1759060758092,70.0366,199.8,199.72,7.98]
[1759060758493,122.36,199.8,199.72,7.98]
[1759060758696,70.0337,199.81,199.72,7.98]
[1759060758891,4.5033,199.76,199.69,4.20447759]
[1759060759099,4.5033,199.76,199.7,7.98]
[1759060760608,4.5033,199.76,199.7,4.5044]
[1759060760803,4.5033,199.76,199.71,7.98]
[1759060762008,4.5028,199.78,199.71,7.98]
[1759060762700,4.5031,199.77,199.71,7.98]
[1759060763106,70.0337,199.81,199.71,7.98]
[1759060764714,4.5033,199.76,199.69,4.5046]
[1759060764912,4.5033,199.76,199.7,8.2]
[1759060766716,4.5028,199.78,199.7,4.5043]
[1759060767012,4.5028,199.78,199.71,8.2]
[1759060768611,4.5028,199.78,199.72,8.2]
[1759060769616,4.5028,199.78,199.73,8.2]
[1759060769820,4.5028,199.78,199.72,4.5039]
[1759060770012,4.5028,199.78,199.67,70.0779]
[1759060770209,4.5028,199.78,199.68,8.2]
[1759060772618,4.5028,199.78,199.72,4.5039]
[1759060772817,4.5028,199.78,199.73,8.2]
[1759060773318,4.5028,199.78,199.73,4.5038]
[1759060773617,4.5028,199.78,199.74,8.2]
[1759060773817,4.5028,199.78,199.73,4.5038]
[1759060774416,4.5023,199.8,199.74,8.2]
[1759060775620,4.5023,199.8,199.75,4.5033]
[1759060776520,4.5023,199.8,199.76,8.2]
[1759060776708,4.5023,199.8,199.75,4.5033]
[1759060777314,4.5023,199.8,199.76,8.2]
[1759060778010,4.5023,199.8,199.75,4.5033]
[1759060779315,4.5023,199.8,199.76,8.2]
[1759060779622,4.5023,199.8,199.75,4.5033]
[1759060779821,4.5023,199.8,199.76,8.2]
[1759060780520,4.5023,199.8,199.75,4.5033]
[1759060780916,4.5023,199.8,199.76,8.2]
[1759060781122,4.5023,199.8,199.75,4.5033]
[1759060781524,4.5023,199.8,199.74,8.2]
[1759060782625,4.5023,199.8,199.75,8.2]
[1759060782825,4.5023,199.8,199.74,4.5035]
[1759060783020,4.5023,199.8,199.75,8.2]
[1759060783519,4.5019,199.82,199.76,8.2]
[1759060784624,4.5019,199.82,199.76,12.7031]
[1759060784825,4.5019,199.82,199.76,4.5031]
[1759060785222,4.5019,199.82,199.77,8.2]
[1759060785623,4.5019,199.82,199.76,4.5031]
[1759060786729,4.5019,199.82,199.77,8.2]
[1759060786925,4.5015,199.84,199.78,8.2]
[1759060787518,4.5011,199.86,199.8,8.2]
[1759060790238,4.5011,199.86,199.8,12.7022]
[1759060794026,364.32,199.92,199.81,7.68]
[1759060794027,4.5005,199.88,199.81,7.68]
[1759060794327,364.32,199.92,199.82,7.68]
[1759060794533,69.99,199.94,199.82,7.68]
[1759060795634,4.5004,199.89,199.83,4.5015]
[1759060795835,4.5004,199.89,199.84,7.68]
[1759060796031,4.5004,199.89,199.83,4.5015]
[1759060796231,4.5004,199.89,199.84,7.68]
[1759060797033,4.5004,199.89,199.84,4.5013]
[1759060797338,69.9845,199.95,199.85,7.68]
[1759060798734,4.5002,199.9,199.84,4.5013]
[1759060798929,4.5002,199.9,199.85,7.68]
[1759060799129,69.9876,199.94,199.84,7.68]
[1759060800435,4.5002,199.9,199.84,12.1813]
[1759060801637,70.0019,199.9,199.78,7.68]
[1759060802132,70.0051,199.89,199.78,12.1826]
[1759060802438,70.0094,199.88,199.78,7.68]
[1759060803236,4.5016,199.84,199.78,7.68]
[1759060803428,70.0094,199.88,199.78,7.68]
[1759060803839,151.6019,199.9,199.78,7.68]
[1759060803840,4.5015,199.84,199.78,7.68]
[1759060804239,70.0085,199.88,199.78,7.68]
[1759060804639,70.0123,199.87,199.75,4.5033]
[1759060804934,70.0193,199.85,199.76,7.68]
[1759060805135,4.5026,199.79,199.71,4.5043]
[1759060805341,4.5026,199.79,199.72,7.68]
[1759060805741,4.502,199.82,199.76,7.68]
[1759060807035,75.53176818,199.93,199.76,7.68]
[1759060807036,5.53906818,199.92,199.76,7.68]
[1759060807236,69.9927,199.93,199.77,7.68]
[1759060807641,145.7327,199.93,199.77,7.68]
[1759060807842,69.9794,199.97,199.8,7.68]
[1759060808040,64.6,199.96,199.8,7.68]
[1759060808244,64.6,199.96,199.82,7.68]
[1759060808445,192.2794,199.97,199.82,7.68]
[1759060809039,4.4997,199.92,199.85,4.501]
[1759060809245,4.4997,199.92,199.85,12.181]
[1759060810242,4.4991,199.95,199.86,4.5008]
[1759060810444,61.1,199.97,199.87,7.68]
[1759060810644,15.23087997,199.98,199.87,7.68]
[1759060810846,122.26,199.97,199.87,7.68]
[1759060811245,192.2373,199.97,199.87,7.68]
[1759060811638,69.9773,199.97,199.87,7.68]
[1759060811838,192.2373,199.97,199.87,7.68]
[1759060813041,69.9773,199.97,199.87,7.68]
[1759060813246,192.1973,199.97,199.87,7.68]
[1759060813447,4.4997,199.92,199.86,7.62]
[1759060813642,4.4997,199.92,199.78,75.64468237]
[1759060813643,69.9911,199.93,199.83,7.62]
[1759060813843,122.24,199.92,199.83,7.62]
[1759060814043,4.5007,199.88,199.83,7.62]
[1759060814444,4.5007,199.88,199.81,4.5021]
[1759060814845,4.5007,199.88,199.8,7.62]
[1759060815650,4.5009,199.87,199.8,7.62]
[1759060816652,4.5011,199.86,199.8,7.62]
[1759060817246,4.5013,199.85,199.77,29.76]
[1759060817551,4.5013,199.85,199.78,7.62]
[1759060818252,4.5008,199.87,199.78,7.62]
[1759060818645,70.0045,199.9,199.78,7.62]
[1759060819547,4.501,199.86,199.78,7.62]
[1759060822656,4.501,199.86,199.78,4.5027]
[1759060822857,4.501,199.86,199.79,7.62]
[1759060824258,4.5006,199.88,199.76,83.5]
[1759060824458,4.5006,199.88,199.8,7.68]
[1759060825657,4.5006,199.88,199.8,4.5022]
[1759060825957,4.5006,199.88,199.81,7.68]
[1759060827662,4.5006,199.88,199.82,7.68]
[1759060834370,4.5008,199.87,199.82,7.68]
[1759060834572,4.5008,199.87,199.81,4.5019]
[1759060834772,4.5008,199.87,199.82,7.68]
[1759060835171,4.5008,199.87,199.81,4.5019]
[1759060835371,4.5008,199.87,199.82,7.68]
[1759060835762,4.5008,199.87,199.81,4.5019]
[1759060836167,4.5008,199.87,199.82,7.68]
[1759060836368,4.5008,199.87,199.81,4.5019]
[1759060836874,4.5008,199.87,199.82,7.68]
[1759060837275,4.5008,199.87,199.81,4.5019]
[1759060837672,4.5008,199.87,199.82,7.68]
[1759060838166,4.5008,199.87,199.81,4.5019]
[1759060838370,4.5008,199.87,199.82,7.68]
[1759060838676,4.5008,199.87,199.81,4.5019]
[1759060839078,4.5008,199.87,199.82,7.68]
[1759060839376,4.5008,199.87,199.81,4.5019]
[1759060839573,4.501,199.86,199.8,7.68]
[1759060840774,70.0192,199.85,199.76,8.56686759]
[1759060840975,70.0295,199.82,199.72,88.30347857]
[1759060841179,70.0295,199.82,199.71,5.60268237]
[1759060841180,70.0331,199.81,199.73,7.68]
[1759060842778,70.0331,199.81,199.7,7.68]
[1759060843275,70.0454,199.78,199.65,5.60268237]
[1759060843481,70.0454,199.78,199.66,7.68]
[1759060843777,4.5026,199.79,199.67,4.5051]
[1759060843984,122.22,199.79,199.66,7.68]
[1759060845678,4.5031,199.77,199.69,7.68]
[1759060846680,4.5034,199.76,199.69,7.68]
[1759060847680,15.32493376,199.77,199.69,7.68]
[1759060847886,15.32493376,199.77,199.65,4.5056]
[1759060847887,70.054,199.75,199.64,7.68]
[1759060848381,4.5042,199.72,199.64,7.68]
[1759060848581,77.56,199.77,199.64,7.68]
[1759060848788,104.28186603,199.77,199.64,7.68]
[1759060849583,4.5035,199.75,199.66,4.5053]
[1759060849780,4.5035,199.75,199.67,7.68]
[1759060851685,15.20186603,199.77,199.67,7.68]
[1759060851686,4.503,199.77,199.68,7.68]
[1759060851992,122.24,199.79,199.68,7.68]
[1759060852484,70.0366,199.8,199.68,7.68]
[1759060852684,122.24,199.79,199.68,7.68]
[1759060853082,70.0366,199.8,199.68,7.68]
[1759060853285,94.84,199.79,199.68,7.68]
[1759060853485,70.0366,199.8,199.68,7.68]
[1759060853686,4.5034,199.76,199.68,7.68]
[1759060853882,70.0435,199.78,199.68,7.68]
[1759060854189,4.5038,199.74,199.68,7.68]
[1759060860186,70.0512,199.76,199.64,7.77]
[1759060861291,70.061,199.73,199.64,7.77]
[1759060861486,70.061,199.73,199.6,118.9692799]
[1759060861487,70.0698,199.71,199.6,7.77]
[1759060861785,4.5056,199.66,199.6,7.77]
[1759060861987,70.0754,199.69,199.6,7.77]
[1759060862787,192.4354,199.69,199.6,7.77]
[1759060863591,4.5058,199.65,199.57,4.5074]
[1759060863790,4.5058,199.65,199.58,7.77]
[1759060865691,4.5061,199.64,199.58,7.77]
[1759060867600,4.5055,199.66,199.58,7.77]
[1759060868699,4.5055,199.66,199.59,7.77]
[1759060868899,4.5058,199.65,199.59,7.77]
[1759060869991,4.5058,199.65,199.58,4.5071]
[1759060869992,4.506,199.64,199.56,5.90789285]
[1759060870197,4.506,199.64,199.57,7.77]
[1759060870901,4.506,199.64,199.57,12.2774]
[1759060871106,4.506,199.64,199.58,7.99]
[1759060872005,70.0929,199.64,199.56,1.40029285]
[1759060872308,70.1041,199.61,199.47,7.99]
[1759060872506,122.3,199.6,199.47,7.99]
[1759060872705,70.1041,199.61,199.47,7.99]
[1759060873202,144.1841,199.61,199.47,7.99]
[1759060873409,70.1041,199.61,199.47,7.99]
[1759060873595,70.1041,199.61,199.5,7.99]
[1759060873596,4.5077,199.56,199.5,7.99]
[1759060873802,70.1122,199.58,199.5,7.99]
[1759060874002,70.1083,199.59,199.5,7.99]
[1759060874803,4.5077,199.56,199.5,7.99]
[1759060875001,70.0929,199.64,199.5,7.99]
[1759060875206,122.44,199.62,199.5,7.99]
[1759060875508,70.0929,199.64,199.5,7.99]
[1759060875708,87.14,199.62,199.5,7.99]
[1759060876107,4.5071,199.59,199.5,4.5088]
[1759060876304,4.5071,199.59,199.51,7.99]
[1759060876605,4.5069,199.6,199.51,4.5087]
[1759060876810,4.5069,199.6,199.52,7.99]
[1759060877109,70.1002,199.62,199.52,7.99]
[1759060878609,4.5074,199.58,199.52,7.99]
[1759060878810,70.1002,199.62,199.52,7.99]
[1759060879814,70.0963,199.63,199.52,7.99]
[1759060880007,122.42,199.62,199.52,7.99]
[1759060880407,70.0963,199.63,199.52,7.99]
[1759060880905,121.42,199.62,199.52,7.99]
[1759060881406,70.1044,199.61,199.52,7.99]
[1759060881810,192.4844,199.61,199.52,7.99]
[1759060882010,4.5079,199.56,199.5,7.99]
[1759060884104,70.0859,199.66,199.48,78.0703]
[1759060884307,122.34,199.65,199.49,130.26]
[1759060884611,70.0873,199.65,199.49,122.34]
[1759060884812,122.34,199.64,199.5,7.92]
[1759060885114,122.34,199.64,199.52,7.92]
[1759060885713,4.507,199.59,199.52,12.4284]
[1759060887615,4.507,199.59,199.52,4.5084]
[1759060887818,4.507,199.59,199.53,7.92]
[1759060889420,122.34,199.64,199.53,7.92]
[1759060889814,4.5069,199.6,199.54,4.5081]
[1759060890721,4.5069,199.6,199.53,7.92]
[1759060890927,4.5072,199.59,199.53,7.92]
[1759060893828,4.5067,199.61,199.54,7.92]
[1759060894129,122.28,199.64,199.54,7.92]
[1759060895328,14.54776818,199.71,199.51,7.92]
[1759060895622,70.0705,199.71,199.55,7.92]
[1759060895825,70.0752,199.69,199.55,7.92]
[1759060896023,70.0752,199.69,199.55,36.9]
[1759060896224,70.0752,199.69,199.56,7.92]
[1759060896425,4.506,199.64,199.58,4.5071]
[1759060897018,4.5056,199.66,199.59,12.4269]
[1759060897220,70.0705,199.71,199.6,7.92]
[1759060897426,192.3505,199.71,199.6,7.92]
[1759060898632,4.5051,199.68,199.61,7.92]
[1759060900031,70.0593,199.74,199.59,7.92]
[1759060900032,4.5046,199.7,199.59,7.92]
[1759060900532,4.5046,199.7,199.6,7.92]
[1759060901732,4.5046,199.7,199.64,7.92]
[1759060902731,4.5049,199.69,199.64,7.92]
[1759060903039,4.5049,199.69,199.62,7.92]
[1759060904128,4.5049,199.69,199.62,4.5062]
[1759060904335,4.5049,199.69,199.63,7.92]
[1759060904925,4.5044,199.71,199.63,4.506]
[1759060905131,4.5044,199.71,199.64,7.92]
[1759060905325,85.18619534,199.79,199.64,7.92]
[1759060905326,70.0471,199.77,199.64,7.92]
[1759060905633,207.44619534,199.79,199.62,7.92]
[1759060906130,4.5038,199.74,199.68,7.92]
[1759060906540,4.5032,199.76,199.69,7.92]
[1759060907840,4.5028,199.78,199.7,7.92]
[1759060909335,4.5031,199.77,199.7,7.92]
[1759060909939,4.5024,199.8,199.71,7.92]
[1759060910636,70.0177,199.86,199.71,7.92]
[1759060911336,159.2177,199.86,199.71,7.92]
[1759060911542,4.502,199.82,199.73,4.5037]
[1759060911738,4.502,199.82,199.74,7.92]
[1759060912338,4.502,199.82,199.75,7.92]
[1759060914544,4.502,199.82,199.74,4.5035]
[1759060914545,70.0041,199.9,199.78,7.68]
[1759060914837,364.52,199.93,199.78,7.68]
[1759060915040,556.8511,199.93,199.78,7.68]
[1759060915833,434.5111,199.93,199.78,7.68]
[1759060916046,556.8511,199.93,199.78,7.68]
[1759060916345,434.5111,199.93,199.78,7.68]
[1759060916538,4.5004,199.89,199.8,4.5021]
[1759060916738,4.5004,199.89,199.81,7.68]
[1759060919735,4.5004,199.89,199.82,7.68]
[1759060920642,4.4997,199.92,199.82,12.1816]
[1759060920843,70.61551826,199.97,199.82,21.78]
[1759060921148,70.61551826,199.97,199.83,7.68]
[1759060921447,166.59551826,199.97,199.83,7.68]
[1759060922151,4.4992,199.94,199.86,7.68]
[1759060922545,70.61551826,199.97,199.86,7.68]
[1759060922946,69.9808,199.96,199.86,7.68]
[1759060923246,122.26,199.95,199.8,7.68]
[1759060923445,69.9808,199.96,199.8,7.68]
[1759060923646,4.4997,199.92,199.84,7.68]
[1759060925547,4.4992,199.94,199.85,7.68]
[1759060926539,4.4992,199.94,199.85,12.181]
[1759060926745,4.4992,199.94,199.86,7.68]
[1759060929545,69.9808,199.96,199.86,7.68]
[1759060930644,4.4998,199.92,199.86,7.68]
[1759060930840,70.61531826,199.97,199.86,7.68]
[1759060931550,4.4996,199.93,199.86,7.68]
[1759060931850,69.9848,199.95,199.86,7.68]
[1759060932143,69.9896,199.94,199.86,7.68]
[1759060932340,69.9914,199.93,199.8,32.49]
[1759060932542,69.9914,199.93,199.81,7.55]
[1759060933647,70.61531826,199.97,199.82,7.55]
[1759060933847,0.63761826,199.97,199.82,7.55]
[1759060934353,4.4992,199.94,199.86,7.55]
[1759060935252,4.4992,199.94,199.86,12.0508]
[1759060937350,4.4992,199.94,199.87,7.55]
[1759060937551,4.4992,199.94,199.87,12.0506]
[1759060938050,4.5001,199.9,199.87,7.55]
[1759060938251,70.61571826,199.97,199.81,7.55]
[1759060938554,0.63761826,199.97,199.81,7.55]
[1759060939352,4.4995,199.93,199.86,7.55]
[1759060940748,4.4995,199.93,199.86,12.0508]
[1759060942549,4.4995,199.93,199.86,4.5008]
[1759060942855,4.4995,199.93,199.87,12.0506]
[1759060943355,4.4995,199.93,199.87,4.5006]
[1759060943653,4.4997,199.92,199.85,8.0]
[1759060943853,69.9722,199.99,199.85,8.0]
[1759060944755,4.4991,199.95,199.88,4.5004]
[1759060944950,4.4991,199.95,199.89,8.0]
[1759060947049,4.4993,199.94,199.89,8.0]
[1759060947255,69.9771,199.97,199.81,8.0]
[1759060948549,4.4997,199.92,199.86,4.5009]
[1759060949753,4.4997,199.92,199.87,8.0]
[1759060950059,4.4993,199.94,199.87,8.0]
[1759060950746,4.4995,199.93,199.87,8.0]
[1759060952655,69.9813,199.96,199.85,8.0]
[1759060953156,4.4998,199.92,199.85,8.0]
[1759060953550,69.9813,199.96,199.85,8.0]
[1759060954558,4.4999,199.91,199.85,8.0]
[1759060955652,69.9813,199.96,199.83,8.0]
[1759060955653,69.9886,199.94,199.83,8.0]
[1759060955849,69.9984,199.91,199.8,8.0]
[1759060956360,70.0022,199.9,199.8,8.0]
[1759060956853,4.5013,199.85,199.79,0.86524422]
[1759060957059,4.5013,199.85,199.79,8.86524422]
[1759060958460,70.0096,199.88,199.79,8.86524422]
[1759060959564,4.5018,199.83,199.79,8.86524422]
[1759060959751,70.0126,199.87,199.79,8.86524422]
[1759060959953,70.0126,199.87,199.76,4.5031]
[1759060959954,70.0126,199.87,199.76,8.0]
[1759060960859,4.5015,199.84,199.76,8.0]
[1759060961254,69.9946,199.92,199.76,8.0]
[1759060961255,75.53366818,199.92,199.76,8.0]
[1759060961460,69.9946,199.92,199.77,8.0]
[1759060961662,149.5146,199.92,199.77,8.0]
[1759060961863,69.9946,199.92,199.77,8.0]
[1759060962063,69.9946,199.92,199.8,8.0]
[1759060962064,69.9983,199.91,199.8,8.0]
[1759060963665,4.5011,199.86,199.8,8.0]
[1759060963969,4.5011,199.86,199.8,12.5022]
[1759060964466,4.5006,199.88,199.8,12.5022]
[1759060964768,69.9983,199.91,199.8,8.0]
[1759060965569,4.5011,199.86,199.8,8.0]
[1759060969271,4.5006,199.88,199.8,8.0]
[1759060970170,4.5006,199.88,199.81,8.0]
[1759060970370,4.5001,199.9,199.81,8.0]
[1759060971468,4.5001,199.9,199.82,8.0]
[1759060978074,69.9955,199.92,199.82,8.0]
[1759060978377,69.9986,199.91,199.82,8.0]
[1759060978978,4.5011,199.86,199.82,8.0]
[1759060980986,4.5013,199.85,199.82,8.0]
[1759060982478,70.0123,199.87,199.78,7.74]
[1759060982672,70.0123,199.87,199.77,0.8861683]
[1759060982673,70.0198,199.85,199.77,0.8861683]
[1759060982875,70.0198,199.85,199.75,7.74]
[1759060983279,4.5027,199.79,199.75,7.74]
[1759060983482,4.5027,199.79,199.74,364.32]
[1759060984285,4.5027,199.79,199.75,7.74]
[1759060984681,70.0323,199.82,199.75,7.74]
[1759060985183,70.0234,199.84,199.7,122.1]
[1759060985184,70.037,199.8,199.72,7.74]
[1759060985585,4.5036,199.75,199.72,7.74]
[1759060985780,70.0348,199.81,199.67,122.1]
[1759060985981,84.84798772,199.81,199.68,7.74]
[1759060987387,84.84798772,199.81,199.67,122.1]
[1759060987388,70.0227,199.84,199.7,7.74]
[1759060987588,70.0191,199.85,199.7,7.74]
[1759060988183,4.5025,199.8,199.71,4.5042]
[1759060988390,70.0332,199.81,199.68,7.74]
[1759060988595,70.0366,199.8,199.68,7.74]
[1759060989791,4.5034,199.76,199.69,7.74]
[1759060996999,4.5037,199.74,199.69,7.74]
[1759060997195,70.0544,199.75,199.63,7.98]
[1759060997594,4.5047,199.7,199.63,7.98]
[1759060997786,70.0653,199.72,199.63,7.98]